bitfinex/quotes_BTCUSD_20250205
["timestamp","ask_amount","ask_price","bid_price","bid_amount"]
[1738767461396,0.09062141,98170.0,98169.0,0.30538837]
[1738767461978,0.09062141,98170.0,98169.0,0.28238837]
[1738767462540,0.09062141,98170.0,98169.0,0.152797]
[1738767462732,0.09062141,98170.0,98166.0,0.203735]
[1738767462733,0.09062141,98170.0,98141.0,0.0832]
[1738767462939,0.09062141,98170.0,98146.0,0.00046683]
[1738767463144,0.152822,98154.0,98146.0,0.00046683]
[1738767463346,1.5,98157.0,98146.0,0.00046683]
[1738767463658,0.152831,98147.0,98146.0,0.00046683]
[1738767464848,0.25533465,98147.0,98146.0,0.00046683]
[1738767465230,0.152831,98147.0,98146.0,0.00046683]
[1738767466511,0.25533465,98147.0,98146.0,0.00046683]
[1738767466685,0.152818,98156.0,98146.0,0.00046683]
[1738767466886,0.00101725,98179.0,98147.0,0.01533028]
[1738767467110,0.10250365,98178.0,98148.0,0.00101869]
[1738767467288,0.09062141,98190.0,98148.0,0.00101869]
[1738767467289,0.09062141,98190.0,98162.0,0.08076647]
[1738767467496,0.09062141,98190.0,98152.0,0.08076647]
[1738767467497,0.203688,98189.0,98165.0,0.152802]
[1738767467705,0.09062141,98190.0,98166.0,0.18428858]
[1738767467904,0.09062141,98190.0,98168.0,0.203732]
[1738767468130,0.10250365,98189.0,98167.0,0.03161989]
[1738767468304,0.152789,98175.0,98162.0,0.152807]
[1738767468607,0.152792,98173.0,98153.0,0.023]
[1738767468828,0.152789,98175.0,98154.0,0.1035222]
[1738767469029,0.0782,98188.0,98165.0,0.152802]
[1738767469223,0.0782,98188.0,98155.0,0.023]
[1738767469224,0.152786,98177.0,98155.0,0.023]
[1738767469428,0.0782,98188.0,98156.0,0.12414918]
[1738767469659,0.10250365,98187.0,98164.0,0.152804]
[1738767469859,0.152791,98173.0,98165.0,0.00101853]
[1738767470076,0.152791,98173.0,98161.0,0.152808]
[1738767470310,1.5,98172.0,98162.0,0.00101857]
[1738767470521,0.0829,98217.0,98174.0,0.023]
[1738767470730,0.00022491,98199.0,98164.0,0.023]
[1738767470900,0.152771,98187.0,98169.0,0.08076647]
[1738767471129,0.152771,98187.0,98170.0,0.02068286]
[1738767471344,0.15277,98187.0,98170.0,0.02068286]
[1738767471586,0.152765,98190.0,98171.0,0.203726]
[1738767471814,0.10272856,98199.0,98170.0,0.02068286]
[1738767471815,0.203672,98197.0,98177.0,0.152783]
[1738767472075,0.10272856,98199.0,98175.0,0.152787]
[1738767472259,0.10272856,98199.0,98143.0,0.203783]
[1738767472260,0.1035209,98196.0,98143.0,0.203783]
[1738767472451,0.152782,98180.0,98170.0,0.08076647]
[1738767472632,0.152784,98178.0,98170.0,0.08076647]
[1738767472801,0.40743,98176.0,98145.0,0.203779]
[1738767473008,0.40743,98176.0,98134.0,0.15285]
[1738767473009,0.152836,98145.0,98134.0,0.15285]
[1738767473189,0.0001404,98176.0,98131.0,0.08076647]
[1738767473190,0.15,98170.0,98142.0,0.08076647]
[1738767473396,0.152844,98140.0,98131.0,0.08076647]
[1738767473597,0.152852,98134.0,98131.0,0.08076647]
[1738767473797,0.00101725,98138.0,98121.0,0.08076647]
[1738767474005,1.5,98139.0,98110.0,0.001019]
[1738767474006,0.152856,98131.0,98110.0,0.001019]
[1738767474198,1.5,98139.0,98111.0,0.03068269]
[1738767474451,0.152857,98131.0,98113.0,0.203846]
[1738767474682,1.5,98139.0,98114.0,0.10352267]
[1738767474831,0.152845,98138.0,98126.0,0.152863]
[1738767475035,0.152845,98138.0,98128.0,0.15286]
[1738767475244,0.152845,98138.0,98128.0,0.168146]
[1738767475422,1.5,98139.0,98128.0,0.015286]
[1738767475618,0.152846,98138.0,98128.0,0.168146]
[1738767475827,0.152846,98138.0,98129.0,0.152858]
[1738767476031,0.152846,98138.0,98128.0,0.015286]
[1738767476228,1.5,98139.0,98129.0,0.03166417]
[1738767476431,0.0799,98169.0,98130.0,0.00101894]
[1738767476658,0.203736,98166.0,98149.0,0.152827]
[1738767476854,0.10250365,98165.0,98130.0,0.00101894]
[1738767477056,0.203759,98155.0,98143.0,0.08076647]
[1738767477257,0.10250365,98165.0,98137.0,0.152846]
[1738767477541,0.203771,98150.0,98131.0,0.015286]
[1738767477801,0.203742,98163.0,98140.0,0.152841]
[1738767477975,0.1035209,98162.0,98141.0,0.03166417]
[1738767478122,0.1646109,98162.0,98131.0,0.00046683]
[1738767478322,0.09062141,98172.0,98152.0,0.16735462]
[1738767478566,0.09062141,98172.0,98165.0,0.203738]
[1738767478769,0.09062141,98172.0,98167.0,0.152799]
[1738767478972,0.09062141,98172.0,98160.0,0.16735462]
[1738767479192,0.09062141,98172.0,98161.0,0.01775404]
[1738767479422,0.09062141,98172.0,98169.0,0.152797]
[1738767479593,0.09062141,98172.0,98171.0,0.152794]
[1738767480433,1.5,98186.0,98169.0,0.15326383]
[1738767480549,1.5,98186.0,98170.0,0.18369944]
[1738767480746,0.00101725,98185.0,98169.0,0.00046683]
[1738767481003,0.152785,98177.0,98169.0,0.00046683]
[1738767481182,0.00101725,98184.0,98169.0,0.00046683]
[1738767481391,0.152794,98171.0,98169.0,0.00046683]
[1738767482344,0.1646109,98170.0,98169.0,0.00046683]
[1738767482505,0.16359365,98170.0,98169.0,0.00046683]
[1738767482854,1.66359365,98170.0,98169.0,0.00046683]
[1738767483086,1.60250365,98170.0,98169.0,0.00046683]
[1738767484044,1.5,98170.0,98169.0,0.00046683]
[1738767484450,0.203695,98186.0,98169.0,0.00046683]
[1738767484603,0.152788,98175.0,98169.0,0.00046683]
[1738767484807,1.5,98174.0,98169.0,0.00046683]
[1738767485002,1.65279,98174.0,98170.0,0.03570058]
[1738767485253,1.65279,98174.0,98169.0,0.00046683]
[1738767485254,1.5,98174.0,98169.0,0.00046683]
[1738767485695,1.65279,98174.0,98169.0,0.00046683]
[1738767485914,0.152791,98173.0,98169.0,0.00046683]
[1738767486210,1.5,98174.0,98169.0,0.00046683]
[1738767486754,0.152796,98170.0,98169.0,0.00046683]
[1738767487105,1.5,98174.0,98169.0,0.00046683]
[1738767487311,1.5,98174.0,98172.0,0.152792]
[1738767487436,0.0467,98214.0,98188.0,0.152767]
[1738767487639,0.0467,98214.0,98177.0,0.25792849]
[1738767487914,1.5,98194.0,98180.0,0.15278]
[1738767488141,1.5,98194.0,98169.0,0.00046683]
[1738767488347,0.00101725,98193.0,98169.0,0.00046683]
[1738767488480,0.00953317,98169.0,98168.0,0.152799]
[1738767488875,0.00953317,98169.0,98166.0,0.203735]
[1738767488876,0.00953317,98169.0,98158.0,0.152813]
[1738767489075,0.00953317,98169.0,98159.0,0.11778495]
[1738767489328,0.152799,98168.0,98158.0,0.152814]
[1738767489496,0.00953317,98169.0,98140.0,0.33869496]
[1738767489702,0.356531,98168.0,98159.0,0.152812]
[1738767489909,0.356531,98168.0,98141.0,0.10250365]
[1738767489910,0.00953317,98169.0,98155.0,0.203758]
[1738767490192,0.152807,98163.0,98157.0,0.152816]
[1738767490577,0.152799,98168.0,98144.0,0.203782]
[1738767490792,0.152804,98165.0,98158.0,0.152814]
[1738767490959,0.152799,98168.0,98146.0,0.203778]
[1738767491159,0.356531,98168.0,98160.0,0.152811]
[1738767491387,0.00953317,98169.0,98146.0,0.203778]
[1738767491593,0.00953317,98169.0,98146.0,0.10250365]
[1738767491795,0.10250365,98168.0,98146.0,0.00101863]
[1738767492020,0.10250365,98168.0,98133.0,0.0455]
[1738767492021,0.00101725,98167.0,98133.0,0.0455]
[1738767492155,0.00953317,98169.0,98137.0,0.00101876]
[1738767492156,0.10250365,98166.0,98137.0,0.00101876]
[1738767492361,1.50101725,98165.0,98140.0,0.152842]
[1738767492560,0.10250365,98164.0,98134.0,0.203802]
[1738767492769,0.152847,98137.0,98129.0,0.203812]
[1738767492941,0.152847,98137.0,98120.0,0.08076647]
[1738767492942,0.152847,98137.0,98121.0,0.152871]
[1738767493167,0.152847,98137.0,98120.0,0.08076647]
[1738767493168,0.152847,98137.0,98124.0,0.152867]
[1738767493375,0.152847,98137.0,98121.0,0.152871]
[1738767493596,0.152847,98137.0,98117.0,0.203836]
[1738767493836,0.152847,98137.0,98101.0,0.07804526]
[1738767494039,0.15331498,98137.0,98110.0,0.00101901]
[1738767494256,0.15331498,98137.0,98126.0,0.152863]
[1738767494491,0.15331498,98137.0,98130.0,0.152857]
[1738767494699,0.15331498,98137.0,98121.0,0.00101896]
[1738767494901,0.15331498,98137.0,98110.0,0.25792849]
[1738767494902,0.15331498,98137.0,98125.0,0.152866]
[1738767495105,0.15331498,98137.0,98122.0,0.203826]
[1738767495300,0.15331498,98137.0,98123.0,0.00101896]
[1738767495511,0.15331498,98137.0,98119.0,0.203832]
[1738767495718,0.15331498,98137.0,98124.0,0.152866]
[1738767495956,0.15331498,98137.0,98110.0,0.25792849]
[1738767496196,0.15331498,98137.0,98118.0,0.203834]
[1738767496439,0.15331498,98137.0,98126.0,0.152864]
[1738767496691,0.00046798,98137.0,98126.0,0.00101899]
[1738767497244,0.00046798,98137.0,98134.0,0.152851]
[1738767497645,0.00046798,98137.0,98136.0,0.153949]
[1738767498081,0.00046798,98137.0,98136.0,0.0011]
[1738767498492,0.00046798,98137.0,98136.0,0.155075]
[1738767499053,0.00046798,98137.0,98136.0,0.1540561]
[1738767499292,0.00046798,98137.0,98136.0,0.0012071]
[1738767501154,0.15331498,98137.0,98136.0,0.0012071]
[1738767501388,0.00046798,98137.0,98136.0,0.0012071]
[1738767502143,0.00046798,98137.0,98136.0,0.16946211]
[1738767502380,0.00046798,98137.0,98136.0,0.15507495]
[1738767503098,0.00046798,98137.0,98136.0,0.1540561]
[1738767503340,0.00046798,98137.0,98136.0,0.0012071]
[1738767503575,0.15331498,98137.0,98136.0,0.0012071]
[1738767503809,0.00046798,98137.0,98136.0,0.0012071]
[1738767504295,0.00046798,98137.0,98136.0,0.03699461]
[1738767504977,0.00046798,98137.0,98136.0,0.18984361]
[1738767505565,0.00046798,98137.0,98131.0,0.203808]
[1738767506022,0.00046798,98137.0,98122.0,0.203826]
[1738767506155,0.00046798,98137.0,98134.0,0.152851]
[1738767506360,0.00046798,98137.0,98136.0,0.152849]
[1738767506671,0.00046798,98137.0,98109.0,0.00823213]
[1738767506894,0.00046798,98137.0,98121.0,0.02579285]
[1738767507096,0.152853,98134.0,98127.0,0.152862]
[1738767507303,1.5,98133.0,98115.0,0.203842]
[1738767507495,1.5,98133.0,98117.0,0.203838]
[1738767507695,1.5,98133.0,98127.0,0.152861]
[1738767507918,1.5,98133.0,98117.0,0.30634165]
[1738767508187,1.5,98133.0,98118.0,0.03063417]
[1738767508860,1.5,98133.0,98129.0,0.152858]
[1738767509082,1.5,98133.0,98128.0,0.203813]
[1738767509288,1.5,98133.0,98127.0,0.203816]
[1738767509289,1.5,98133.0,98132.0,0.152855]
[1738767509841,0.00046798,98137.0,98136.0,0.152849]
[1738767510044,0.00046798,98137.0,98136.0,0.16882875]
[1738767510785,0.00046798,98137.0,98136.0,0.01597975]
[1738767510945,0.00046798,98137.0,98120.0,0.16740712]
[1738767511147,0.152852,98134.0,98127.0,0.152861]
[1738767511351,0.00046798,98137.0,98112.0,0.20486699]
[1738767511561,0.203798,98136.0,98123.0,0.203824]
[1738767511757,0.00046798,98137.0,98124.0,0.0203824]
[1738767511957,0.00046798,98137.0,98126.0,0.203819]
[1738767512188,0.00046798,98137.0,98136.0,0.152849]
[1738767512936,0.00046798,98137.0,98132.0,0.1529621]
[1738767513139,0.00046798,98137.0,98132.0,0.0001071]
[1738767513393,0.152852,98134.0,98133.0,0.02623152]
[1738767513545,0.152851,98135.0,98132.0,0.0001071]
[1738767513868,0.00046798,98137.0,98132.0,0.0001071]
[1738767514406,0.00046798,98137.0,98133.0,0.203805]
[1738767514611,0.00046798,98137.0,98135.0,0.152849]
[1738767514857,0.00046798,98137.0,98132.0,0.0001471]
[1738767515082,0.00046798,98137.0,98135.0,0.15285]
[1738767515250,0.00046798,98137.0,98134.0,0.203802]
[1738767515580,0.00046798,98137.0,98136.0,0.152849]
[1738767515763,0.00046798,98137.0,98136.0,0.15386781]
[1738767516164,0.00046798,98137.0,98136.0,0.152849]
[1738767516359,0.00046798,98137.0,98136.0,0.17906691]
[1738767517983,0.00046798,98137.0,98136.0,0.02621791]
[1738767518203,0.00046798,98137.0,98136.0,0.17906691]
[1738767518783,0.00046798,98137.0,98136.0,0.18008578]
[1738767519370,0.00046798,98137.0,98136.0,0.28258943]
[1738767519590,0.00046798,98137.0,98136.0,0.30457056]
[1738767520797,9.8e-07,98137.0,98136.0,1.48584368]
[1738767520999,0.00022491,98170.0,98168.0,0.152799]
[1738767521206,0.00022491,98170.0,98168.0,0.27058255]
[1738767521414,0.00022491,98170.0,98168.0,0.29358255]
[1738767522314,0.00022491,98170.0,98168.0,0.31260851]
[1738767523132,0.00022491,98170.0,98168.0,0.29358255]
[1738767523395,0.00022491,98170.0,98168.0,0.30212273]
[1738767524656,0.00022491,98170.0,98168.0,1.32339585]
[1738767525942,0.00022491,98170.0,98168.0,1.33339585]
[1738767526162,0.00022491,98170.0,98168.0,1.48339585]
[1738767526593,0.00022491,98170.0,98168.0,0.27912273]
[1738767526792,0.00022491,98170.0,98168.0,0.25530265]
[1738767527205,1.50975808,98169.0,98168.0,0.25530265]
[1738767527432,0.00975808,98169.0,98168.0,0.25530265]
[1738767529297,0.00975808,98169.0,98168.0,0.27830265]
[1738767529626,0.00975808,98169.0,98168.0,1.29957577]
[1738767530397,0.00975808,98169.0,98168.0,1.27657577]
[1738767530600,0.00975808,98169.0,98168.0,0.25530265]
[1738767533752,0.00975808,98169.0,98168.0,0.27830265]
[1738767536557,0.00975808,98169.0,98168.0,0.43830265]
[1738767536734,0.00975808,98169.0,98168.0,0.51580265]
[1738767536933,9.9e-07,98170.0,98169.0,0.01]
[1738767537196,9.9e-07,98170.0,98169.0,0.48761882]
[1738767537337,9.9e-07,98170.0,98169.0,0.49660065]
[1738767539573,0.00022491,98190.0,98182.0,0.01]
[1738767539806,0.00036533,98190.0,98189.0,0.27826965]
[1738767543211,0.00036533,98190.0,98189.0,0.25526965]
[1738767544073,0.00036533,98190.0,98189.0,0.152766]
[1738767544273,0.00036533,98190.0,98187.0,0.152769]
[1738767544477,0.00036533,98190.0,98188.0,0.15378529]
[1738767545474,0.00036533,98190.0,98189.0,0.152766]
[1738767546501,0.00036533,98190.0,98170.0,0.16740712]
[1738767546724,0.00036533,98190.0,98171.0,0.10352196]
[1738767547044,0.00036533,98190.0,98186.0,0.15277]
[1738767547238,0.00036533,98190.0,98181.0,0.00101835]
[1738767547476,0.00036533,98190.0,98172.0,0.203724]
[1738767547477,0.152766,98189.0,98173.0,0.00101834]
[1738767547659,0.00036533,98190.0,98184.0,0.152773]
[1738767547874,0.00036533,98190.0,98180.0,0.20472537]
[1738767548049,0.00036533,98190.0,98189.0,0.152766]
[1738767548249,0.00036533,98190.0,98173.0,0.203721]
[1738767548456,0.00036533,98190.0,98174.0,0.10352195]
[1738767548672,0.00036533,98190.0,98187.0,0.152768]
[1738767548993,0.00036533,98190.0,98181.0,0.203705]
[1738767548994,0.00036533,98190.0,98186.0,0.152769]
[1738767549194,0.00036533,98190.0,98185.0,0.152771]
[1738767549332,0.00036533,98190.0,98188.0,0.152766]
[1738767549743,0.00036533,98190.0,98187.0,0.152768]
[1738767550124,0.00036533,98190.0,98189.0,0.00996]
[1738767550975,0.15313033,98190.0,98189.0,0.00996]
[1738767551264,0.00036533,98190.0,98189.0,0.00996]
[1738767552918,0.07776533,98190.0,98189.0,0.00996]
[1738767553393,0.07776533,98190.0,98189.0,0.0313261]
[1738767553925,0.07776533,98190.0,98189.0,0.00996]
[1738767554367,0.00036533,98190.0,98189.0,0.00996]
[1738767554869,0.00036533,98190.0,98189.0,0.26624797]
[1738767555087,0.00036533,98190.0,98189.0,0.00996]
[1738767555736,0.00036533,98190.0,98189.0,0.162726]
[1738767555908,0.00036533,98190.0,98189.0,0.00996]
[1738767556902,0.15313033,98190.0,98189.0,0.00996]
[1738767557103,0.00036533,98190.0,98189.0,0.00996]
[1738767557513,0.00036533,98190.0,98189.0,0.26522965]
[1738767557917,0.00036533,98190.0,98189.0,0.28822965]
[1738767558164,0.00036533,98190.0,98189.0,0.47829588]
[1738767558366,3.3e-07,98190.0,98189.0,0.48829588]
[1738767558602,0.08076647,98234.0,98198.0,0.152752]
[1738767558889,0.08076647,98222.0,98221.0,0.152716]
[1738767559130,0.0001404,98234.0,98233.0,0.152698]
[1738767559339,0.0001404,98234.0,98233.0,0.27047145]
[1738767565184,0.0001404,98234.0,98233.0,0.29347145]
[1738767565830,0.00036468,98234.0,98233.0,0.29347145]
[1738767566037,0.00036468,98234.0,98233.0,0.44347145]
[1738767566220,0.00022428,98236.0,98233.0,0.44347145]
[1738767566221,9.6e-07,98236.0,98235.0,0.01]
[1738767566438,0.00022428,98268.0,98267.0,0.152645]
[1738767566638,0.00022428,98268.0,98267.0,0.25514865]
[1738767566793,0.00069209,98268.0,98267.0,0.25514865]
[1738767567989,0.00069209,98268.0,98267.0,0.28652923]
[1738767568211,0.00069209,98268.0,98267.0,0.30179903]
[1738767570246,0.00069209,98268.0,98267.0,0.27879903]
[1738767571525,0.00069209,98268.0,98267.0,0.30179903]
[1738767574115,0.00069209,98268.0,98267.0,0.27879903]
[1738767574867,0.00069209,98268.0,98267.0,0.30179903]
[1738767575749,0.00069209,98268.0,98267.0,0.27879903]
[1738767576769,0.00069209,98268.0,98267.0,0.30179903]
[1738767576967,0.00069209,98268.0,98267.0,0.45179903]
[1738767578423,9e-08,98268.0,98267.0,0.47179903]
[1738767580144,9e-08,98268.0,98267.0,0.45179903]
[1738767581295,9e-08,98268.0,98267.0,0.46179903]
[1738767581825,0.00022491,98289.0,98287.0,0.175614]
[1738767581988,0.00022491,98289.0,98287.0,1.30040782]
[1738767581989,0.00036459,98288.0,98287.0,1.30040782]
[1738767582185,0.00036459,98288.0,98287.0,1.27639077]
[1738767583349,0.00036459,98288.0,98287.0,1.29713848]
[1738767583788,0.00036459,98288.0,98287.0,1.32013848]
[1738767584001,0.00036459,98288.0,98287.0,1.31240828]
[1738767584199,0.00036459,98288.0,98287.0,1.33540828]
[1738767584402,0.00036459,98288.0,98287.0,1.32134572]
[1738767584663,0.00036459,98288.0,98287.0,0.27038745]
[1738767585411,0.12556459,98288.0,98284.0,0.152618]
[1738767585645,0.12556459,98288.0,98270.0,0.16740712]
[1738767585842,0.12556459,98288.0,98271.0,0.10352103]
[1738767586042,0.12556459,98288.0,98274.0,0.203512]
[1738767586261,0.12556459,98288.0,98260.0,0.16740712]
[1738767586474,0.00022408,98268.0,98261.0,0.18428761]
[1738767586680,0.00022408,98268.0,98267.0,0.152645]
[1738767586890,0.00022408,98268.0,98267.0,0.2561661]
[1738767587094,0.00022408,98268.0,98267.0,0.25514865]
[1738767587759,0.00022408,98268.0,98267.0,0.27814865]
[1738767590467,0.00022408,98268.0,98267.0,1.29942177]
[1738767591761,8e-08,98268.0,98267.0,1.47961593]
[1738767591975,8e-08,98268.0,98267.0,1.51111272]
[1738767592929,0.00200008,98268.0,98267.0,1.47811272]
[1738767593132,8e-08,98268.0,98267.0,1.45791856]
[1738767593338,0.00036459,98288.0,98287.0,0.152614]
[1738767593554,0.00036459,98288.0,98287.0,0.25511765]
[1738767593968,0.00036459,98288.0,98261.0,1.02127312]
[1738767594172,0.002,98268.0,98267.0,0.152645]
[1738767594406,0.002,98268.0,98267.0,0.25616599]
[1738767594606,0.002,98268.0,98267.0,0.25514865]
[1738767594818,0.002,98268.0,98267.0,0.27814865]
[1738767595996,0.00036459,98288.0,98287.0,0.152614]
[1738767596227,0.00236459,98288.0,98287.0,0.25511765]
[1738767596447,0.00236459,98288.0,98287.0,0.28062942]
[1738767596657,0.0310895,98290.0,98287.0,0.28062942]
[1738767596915,0.0310895,98290.0,98287.0,0.12801542]
[1738767596916,0.152611,98289.0,98287.0,0.12801542]
[1738767597156,0.0310895,98290.0,98287.0,0.12801542]
[1738767597407,0.002,98288.0,98287.0,0.12801542]
[1738767597915,0.002,98288.0,98287.0,0.10250365]
[1738767598944,0.152627,98279.0,98240.0,0.315373]
[1738767599165,0.152627,98279.0,98261.0,0.13414632]
[1738767599422,0.03131358,98290.0,98276.0,0.15263]
[1738767599652,0.152625,98281.0,98277.0,0.015263]
[1738767599855,0.001,98288.0,98279.0,0.203502]
[1738767600083,0.01096558,98290.0,98280.0,0.10250365]
[1738767600296,0.01022428,98333.0,98280.0,0.10250365]
[1738767600297,0.01,98358.0,98281.0,0.18267026]
[1738767600529,0.19752141,98385.0,98348.0,0.152519]
[1738767600530,0.08076647,98359.0,98348.0,0.152519]
[1738767600770,0.09062141,98385.0,98348.0,0.15353572]
[1738767601011,0.09062141,98385.0,98348.0,0.47269044]
[1738767601232,0.09062141,98385.0,98348.0,0.54759449]
[1738767601443,0.04423199,98385.0,98384.0,0.01]
[1738767601664,0.00022471,98399.0,98398.0,0.242142]
[1738767601877,0.08106075,98463.0,98407.0,0.01]
[1738767602079,0.152419,98413.0,98408.0,0.03267068]
[1738767602317,0.08076647,98442.0,98409.0,0.10250365]
[1738767602526,0.08076647,98442.0,98420.0,0.11125174]
[1738767602736,0.0152185,98439.0,98421.0,0.10351946]
[1738767602944,0.152404,98422.0,98421.0,0.00101581]
[1738767603157,0.0152185,98439.0,98400.0,0.16645866]
[1738767603364,0.152382,98437.0,98411.0,0.152421]
[1738767603582,0.001,98413.0,98412.0,0.45815065]
[1738767603800,0.0152185,98439.0,98437.0,0.15238]
[1738767604002,0.0152185,98439.0,98411.0,1.02127312]
[1738767604003,0.001,98422.0,98421.0,0.152406]
[1738767604443,0.0152185,98439.0,98421.0,1.02228902]
[1738767604685,0.0152185,98439.0,98422.0,0.10351952]
[1738767605306,0.0152185,98439.0,98437.0,0.152381]
[1738767605511,0.0152185,98439.0,98438.0,0.10351931]
[1738767605895,0.0152185,98439.0,98438.0,0.25488365]
[1738767606548,0.0162185,98439.0,98438.0,0.10250365]
[1738767606939,0.0152185,98439.0,98438.0,0.10351933]
[1738767607156,0.0162185,98439.0,98438.0,0.25351933]
[1738767607366,0.0162185,98439.0,98438.0,0.25250365]
[1738767608314,0.0162185,98439.0,98438.0,0.10250365]
[1738767608812,0.0152185,98439.0,98438.0,0.25589927]
[1738767609025,0.0152185,98439.0,98438.0,0.25488365]
[1738767609249,0.0162185,98439.0,98438.0,0.25488365]
[1738767609457,0.0152185,98439.0,98438.0,0.25488365]
[1738767609912,0.0162185,98439.0,98438.0,0.40488365]
[1738767610126,0.0162185,98439.0,98438.0,0.42788365]
[1738767610543,0.0162185,98439.0,98438.0,0.25488365]
[1738767611377,0.0162185,98439.0,98438.0,0.28462674]
[1738767612493,0.0162185,98439.0,98416.0,0.203217]
[1738767612494,0.0162185,98439.0,98419.0,0.02974309]
[1738767612701,0.0162185,98439.0,98420.0,0.10250365]
[1738767613126,0.0162185,98439.0,98421.0,0.00101585]
[1738767613310,0.152389,98433.0,98422.0,0.10250365]
[1738767613553,0.0153252,98439.0,98422.0,0.10250365]
[1738767613761,0.15239,98432.0,98422.0,0.10250365]
[1738767613976,0.0163252,98439.0,98423.0,0.00101584]
[1738767614208,0.0163252,98439.0,98436.0,0.152383]
[1738767614422,0.0163252,98439.0,98425.0,0.00101583]
[1738767614629,0.0163252,98439.0,98426.0,0.10351944]
[1738767614883,0.152384,98436.0,98426.0,0.10351944]
[1738767615088,0.0163252,98439.0,98426.0,0.10351944]
[1738767615310,0.15238,98438.0,98426.0,0.10250365]
[1738767615529,0.15238,98438.0,98413.0,0.08076647]
[1738767615530,0.152397,98427.0,98415.0,0.152414]
[1738767615736,0.152385,98435.0,98422.0,0.152404]
[1738767615954,0.0153252,98439.0,98423.0,0.00101588]
[1738767616195,0.152389,98433.0,98424.0,0.00101584]
[1738767616406,0.0153252,98439.0,98423.0,0.10250365]
[1738767616616,0.0153252,98439.0,98424.0,0.00101584]
[1738767616854,0.001,98438.0,98386.0,0.02071465]
[1738767617066,0.203175,98437.0,98406.0,0.08076647]
[1738767617279,0.10250365,98436.0,98406.0,0.08076647]
[1738767617707,0.10250365,98436.0,98406.0,0.152428]
[1738767617916,0.15,98435.0,98398.0,0.00101608]
[1738767618141,0.15244,98399.0,98389.0,0.152455]
[1738767618354,0.15,98433.0,98393.0,0.10351989]
[1738767618562,0.15,98429.0,98394.0,0.00101614]
[1738767618771,0.152432,98405.0,98395.0,0.00101614]
[1738767618984,0.152434,98403.0,98394.0,0.10250365]
[1738767619195,0.15,98433.0,98395.0,0.10351983]
[1738767619411,0.15,98431.0,98395.0,0.10351983]
[1738767619622,0.25250365,98431.0,98395.0,0.10351983]
[1738767619834,0.10250365,98431.0,98395.0,0.10351983]
[1738767620112,0.01252,98434.0,98401.0,0.203249]
[1738767620325,0.001,98405.0,98404.0,0.152432]
[1738767620536,0.001,98405.0,98404.0,0.25595167]
[1738767620740,0.001,98405.0,98404.0,0.27793565]
[1738767620946,0.001,98405.0,98404.0,0.25493565]
[1738767621399,0.0148569,98439.0,98404.0,0.25493565]
[1738767621400,0.152382,98437.0,98426.0,0.152398]
[1738767621605,0.1648569,98439.0,98423.0,0.15341788]
[1738767621822,0.001,98433.0,98421.0,0.00101588]
[1738767622201,0.001,98433.0,98417.0,0.03]
[1738767622409,0.001,98433.0,98420.0,0.16645866]
[1738767622621,0.0153252,98439.0,98421.0,0.10351951]
[1738767622831,0.0153252,98439.0,98437.0,0.15238]
[1738767623035,0.0153252,98439.0,98438.0,0.10351935]
[1738767623462,0.0153252,98439.0,98438.0,1.29779247]
[1738767623667,0.0153252,98439.0,98438.0,1.31677264]
[1738767623892,0.0153252,98439.0,98438.0,0.10250365]
[1738767624095,0.0153252,98439.0,98438.0,0.10351925]
[1738767624296,0.0153252,98439.0,98438.0,0.27651925]
[1738767624503,0.0153252,98439.0,98438.0,0.27550365]
[1738767625756,0.0163252,98439.0,98438.0,0.27550365]
[1738767625949,0.0153252,98439.0,98438.0,0.10250365]
[1738767626364,0.0163252,98439.0,98438.0,1.14677677]
[1738767626507,0.0153252,98439.0,98438.0,1.14677677]
[1738767626709,0.00632519,98439.0,98438.0,1.14677677]
[1738767627082,0.00732519,98439.0,98438.0,1.14677677]
[1738767628209,0.00632519,98439.0,98438.0,1.14677677]
[1738767628624,0.00732519,98439.0,98438.0,1.14677677]
[1738767628836,0.00632519,98439.0,98438.0,1.14677677]
[1738767629017,0.00632519,98439.0,98438.0,0.10250365]
[1738767629243,0.00732519,98439.0,98438.0,0.10351924]
[1738767629450,0.00632519,98439.0,98438.0,0.10351924]
[1738767629668,0.00732519,98439.0,98438.0,0.1265193]
[1738767630080,0.00632519,98439.0,98438.0,0.1265193]
[1738767630347,0.00632519,98439.0,98438.0,0.12550365]
[1738767630574,0.00632519,98439.0,98438.0,0.10250365]
[1738767630844,0.00632519,98439.0,98438.0,0.27651923]
[1738767631059,0.00632519,98439.0,98438.0,0.27550365]
[1738767631522,0.00732519,98439.0,98438.0,0.27550365]
[1738767631754,0.00232519,98439.0,98438.0,0.27550365]
[1738767631986,0.00332519,98439.0,98438.0,0.27550365]
[1738767632458,0.00232519,98439.0,98438.0,0.27550365]
[1738767632693,0.00029428,98463.0,98462.0,0.152343]
[1738767632932,0.00043476,98463.0,98462.0,1.27611977]
[1738767633189,0.00043476,98463.0,98462.0,1.42611977]
[1738767633447,0.00043476,98463.0,98462.0,1.12377677]
[1738767633675,0.00043476,98463.0,98453.0,0.16645866]
[1738767633901,0.00043476,98463.0,98454.0,0.10250365]
[1738767634135,0.203129,98460.0,98454.0,0.10250365]
[1738767634357,0.203124,98462.0,98454.0,0.25485865]
[1738767634585,0.00043476,98463.0,98454.0,0.10250365]
[1738767634586,0.15235,98458.0,98454.0,0.10250365]
[1738767634819,0.00043476,98463.0,98454.0,0.10250365]
[1738767635053,0.00043476,98463.0,98461.0,0.152343]
[1738767635294,0.00143476,98463.0,98462.0,0.10250365]
[1738767635736,0.00043476,98463.0,98462.0,0.10250365]
[1738767636179,0.00043476,98463.0,98451.0,0.203146]
[1738767636422,0.152343,98462.0,98455.0,0.152352]
[1738767636669,0.152345,98461.0,98456.0,0.10250365]
[1738767636884,0.15377676,98463.0,98456.0,0.10250365]
[1738767637095,0.152366,98447.0,98433.0,0.00890935]
[1738767637323,0.152366,98447.0,98420.0,0.0472]
[1738767637324,0.00143476,98463.0,98420.0,0.16645866]
[1738767637548,0.023,98461.0,98424.0,0.2032]
[1738767637758,0.152404,98422.0,98412.0,0.203226]
[1738767637972,0.1524,98425.0,98413.0,0.10250365]
[1738767638188,0.152413,98417.0,98408.0,0.152426]
[1738767638412,0.152387,98434.0,98424.0,0.1524]
[1738767638632,0.15237,98445.0,98426.0,0.152398]
[1738767638845,0.047,98458.0,98427.0,0.10351942]
[1738767638846,0.203146,98451.0,98427.0,0.10351942]
[1738767639066,0.203183,98434.0,98427.0,0.10250365]
[1738767639298,0.00014041,98434.0,98428.0,0.00101585]